[Event "MČR v bleskovém šachu družstev 2019"]
[Site "Teplice, Czech Republic"]
[Date "2019.09.14"]
[Round "1.7"]
[White "Dolezal, Radoslav"]
[Black "Spicka, Jan"]
[Result "1-0"]
[TimeControl "3 mim. + 2 s"]
[WhiteTitle "IM"]
[WhiteFideId "304735"]
[BlackFideId "366781"]
[WhiteElo "2359"]
[BlackElo "1930"]

1. d4 {[%clk 00:03:01]} {[%emt 00:00:03]} Nf6 {[%clk 00:03:02]} {[%emt
00:00:02]} 2. Bg5 {[%clk 00:03:01]} {[%emt 00:00:02]} h6 {[%clk 00:02:46]}
{[%emt 00:00:17]} 3. Bxf6 {[%clk 00:03:01]} {[%emt 00:00:02]} exf6 {[%clk
00:02:48]} {[%emt 00:00:01]} 4. e3 {[%clk 00:02:55]} {[%emt 00:00:07]} d5
{[%clk 00:02:47]} {[%emt 00:00:03]} 5. Bd3 {[%clk 00:02:48]} {[%emt 00:00:09]}
Bd6 {[%clk 00:02:42]} {[%emt 00:00:07]} 6. Ne2 {[%clk 00:02:33]} {[%emt
00:00:16]} Nc6 {[%clk 00:02:41]} {[%emt 00:00:04]} 7. a3 {[%clk 00:02:30]}
{[%emt 00:00:05]} Ne7 {[%clk 00:02:35]} {[%emt 00:00:07]} 8. Ng3 {[%clk
00:02:26]} {[%emt 00:00:05]} Be6 {[%clk 00:02:25]} {[%emt 00:00:13]} 9. Nd2
{[%clk 00:02:25]} {[%emt 00:00:03]} Qd7 {[%clk 00:02:20]} {[%emt 00:00:08]} 10.
c4 {[%clk 00:02:20]} {[%emt 00:00:06]} O-O {[%clk 00:01:28]} {[%emt 00:00:54]}
11. O-O {[%clk 00:02:08]} {[%emt 00:00:14]} dxc4 {[%clk 00:01:17]} {[%emt
00:00:13]} 12. Nxc4 {[%clk 00:01:49]} {[%emt 00:00:22]} Bxg3 {[%clk 00:01:18]}
{[%emt 00:00:01]} 13. hxg3 {[%clk 00:01:49]} {[%emt 00:00:01]} Rfd8 {[%clk
00:01:09]} {[%emt 00:00:12]} 14. b4 {[%clk 00:01:35]} {[%emt 00:00:15]} Bf5
{[%clk 00:00:57]} {[%emt 00:00:14]} 15. Bxf5 {[%clk 00:01:22]} {[%emt
00:00:15]} Nxf5 {[%clk 00:00:55]} {[%emt 00:00:04]} 16. Qf3 {[%clk 00:01:08]}
{[%emt 00:00:16]} c6 {[%clk 00:00:40]} {[%emt 00:00:17]} 17. Rfc1 {[%clk
00:01:03]} {[%emt 00:00:07]} Nd6 {[%clk 00:00:31]} {[%emt 00:00:11]} 18. Na5
{[%clk 00:01:02]} {[%emt 00:00:03]} Rab8 {[%clk 00:00:24]} {[%emt 00:00:09]} 19.
Ra2 {[%clk 00:00:44]} {[%emt 00:00:20]} Qf5 {[%clk 00:00:21]} {[%emt 00:00:05]}
20. Qxf5 {[%clk 00:00:41]} {[%emt 00:00:05]} Nxf5 {[%clk 00:00:22]} 21. Kf1
{[%clk 00:00:36]} {[%emt 00:00:06]} Nd6 {[%clk 00:00:19]} {[%emt 00:00:06]} 22.
a4 {[%clk 00:00:36]} {[%emt 00:00:02]} Kf8 {[%clk 00:00:17]} {[%emt 00:00:04]}
23. Ke2 {[%clk 00:00:36]} {[%emt 00:00:01]} Ke7 {[%clk 00:00:19]} 24. Nb3
{[%clk 00:00:25]} {[%emt 00:00:14]} Rbc8 {[%clk 00:00:17]} {[%emt 00:00:04]} 25.
Rac2 {[%clk 00:00:24]} {[%emt 00:00:03]} f5 {[%clk 00:00:16]} {[%emt 00:00:04]}
26. Nc5 {[%clk 00:00:25]} {[%emt 00:00:01]} Rc7 {[%clk 00:00:09]} {[%emt
00:00:08]} 27. Kd3 {[%clk 00:00:23]} {[%emt 00:00:04]} g5 {[%clk 00:00:07]}
{[%emt 00:00:04]} 28. Rh1 {[%clk 00:00:23]} {[%emt 00:00:02]} Rh8 {[%clk
00:00:07]} {[%emt 00:00:02]} 29. Nb3 {[%clk 00:00:21]} {[%emt 00:00:03]} f4
{[%clk 00:00:07]} {[%emt 00:00:02]} 30. gxf4 {[%clk 00:00:19]} {[%emt
00:00:04]} gxf4 {[%clk 00:00:09]} 31. exf4 {[%clk 00:00:20]} {[%emt 00:00:01]}
Nf5 {[%clk 00:00:10]} 32. Rh5 {[%clk 00:00:19]} {[%emt 00:00:03]} Ke6 {[%clk
00:00:11]} {[%emt 00:00:02]} 33. Re2+ {[%clk 00:00:19]} {[%emt 00:00:02]} Kf6
{[%clk 00:00:12]} 34. g4 {[%clk 00:00:17]} {[%emt 00:00:04]} Ne7 {[%clk
00:00:13]} {[%emt 00:00:02]} 35. Nc5 {[%clk 00:00:16]} {[%emt 00:00:04]} b6
{[%emt 00:00:03]} 36. Ne4+ Kg7 37. Nd6 {[%clk 00:00:10]} {[%emt 00:00:09]} Ng6
{[%clk 00:00:14]} {[%emt 00:00:02]} 38. Re4 {[%clk 00:00:09]} {[%emt 00:00:02]}
Rd7 {[%clk 00:00:13]} {[%emt 00:00:03]} 39. Nf5+ {[%clk 00:00:09]} {[%emt
00:00:01]} Kf6 {[%clk 00:00:13]} {[%emt 00:00:02]} 40. Rxh6 {[%clk 00:00:09]}
{[%emt 00:00:02]} Rxh6 {[%clk 00:00:14]} {[%emt 00:00:02]} 41. Nxh6 c5 42. bxc5
{[%clk 00:00:11]} {[%emt 00:00:01]} bxc5 {[%clk 00:00:17]} 43. g5+ {[%clk
00:00:11]} {[%emt 00:00:02]} Kg7 {[%clk 00:00:17]} {[%emt 00:00:02]} 44. f5
{[%clk 00:00:10]} {[%emt 00:00:04]} Nh4 {[%clk 00:00:17]} {[%emt 00:00:02]} 45.
Kc4 {[%clk 00:00:09]} {[%emt 00:00:03]} cxd4 {[%clk 00:00:17]} {[%emt
00:00:02]} 46. Rxh4 {[%emt 00:00:02]} d3 47. Rh1 {[%clk 00:00:10]} {[%emt
00:00:01]} d2 {[%clk 00:00:21]} 48. Rd1 f6 {[%emt 00:00:01]} 49. f4 {[%clk
00:00:11]} {[%emt 00:00:03]} fxg5 {[%clk 00:00:23]} {[%emt 00:00:02]} 50. fxg5
{[%clk 00:00:12]} {[%emt 00:00:01]} Rc7+ {[%clk 00:00:23]} {[%emt 00:00:02]} 51.
Kd4 {[%clk 00:00:11]} {[%emt 00:00:02]} Rd7+ {[%clk 00:00:24]} {[%emt
00:00:01]} 52. Ke3 {[%clk 00:00:11]} {[%emt 00:00:02]} Rb7 {[%clk 00:00:24]}
{[%emt 00:00:02]} 53. Rxd2 {[%clk 00:00:11]} {[%emt 00:00:02]} Rb4 {[%clk
00:00:25]} {[%emt 00:00:01]} 54. Rd7+ {[%emt 00:00:09]} 1-0

[Event "MČR v bleskovém šachu družstev 2019"]
[Site "Teplice, Czech Republic"]
[Date "2019.09.14"]
[Round "1.8"]
[White "Srba, Stanislav"]
[Black "Postupa, Pavel"]
[Result "0-1"]
[TimeControl "3 mim. + 2 s"]
[WhiteFideId "364720"]
[BlackFideId "326410"]
[WhiteElo "1883"]
[BlackElo "2184"]

1. d4 {[%clk 00:03:02]} {[%emt 00:00:02]} Nf6 {[%clk 00:03:03]} {[%emt
00:00:01]} 2. c4 g6 {[%emt 00:00:01]} 3. g3 {[%clk 00:03:04]} {[%emt 00:00:02]}
Bg7 {[%clk 00:03:04]} {[%emt 00:00:02]} 4. Bg2 {[%clk 00:03:05]} {[%emt
00:00:01]} d5 {[%clk 00:03:06]} 5. Nc3 {[%clk 00:03:02]} {[%emt 00:00:05]} dxc4
{[%clk 00:03:05]} {[%emt 00:00:03]} 6. Qa4+ {[%clk 00:02:53]} {[%emt 00:00:11]}
Nfd7 {[%clk 00:03:04]} {[%emt 00:00:02]} 7. Qxc4 {[%clk 00:02:51]} {[%emt
00:00:04]} O-O {[%clk 00:03:05]} {[%emt 00:00:02]} 8. Bf4 {[%clk 00:02:50]}
{[%emt 00:00:03]} Na6 {[%clk 00:03:02]} {[%emt 00:00:05]} 9. Nf3 {[%clk
00:02:44]} {[%emt 00:00:08]} Nb6 {[%clk 00:03:02]} {[%emt 00:00:01]} 10. Qb3
{[%clk 00:02:39]} {[%emt 00:00:04]} Be6 {[%clk 00:03:00]} {[%emt 00:00:08]} 11.
Qc2 {[%clk 00:02:38]} {[%emt 00:00:03]} c5 {[%clk 00:02:46]} {[%emt 00:00:15]}
12. dxc5 {[%clk 00:02:14]} {[%emt 00:00:26]} Nxc5 {[%clk 00:02:47]} {[%emt
00:00:02]} 13. O-O {[%clk 00:02:11]} {[%emt 00:00:05]} Rc8 {[%clk 00:02:47]}
{[%emt 00:00:02]} 14. Rfd1 {[%clk 00:02:11]} {[%emt 00:00:02]} Qe8 {[%clk
00:02:42]} {[%emt 00:00:07]} 15. Be5 {[%clk 00:02:04]} {[%emt 00:00:09]} f6
{[%clk 00:02:38]} {[%emt 00:00:06]} 16. Bd4 {[%clk 00:02:04]} {[%emt 00:00:02]}
Bf7 {[%clk 00:02:36]} {[%emt 00:00:03]} 17. e4 {[%clk 00:02:01]} {[%emt
00:00:05]} e5 {[%clk 00:02:37]} {[%emt 00:00:02]} 18. Be3 {[%clk 00:02:01]}
{[%emt 00:00:02]} Nca4 {[%clk 00:02:16]} {[%emt 00:00:23]} 19. Rd3 {[%clk
00:01:40]} {[%emt 00:00:22]} Qe6 {[%clk 00:02:06]} {[%emt 00:00:12]} 20. b3
{[%clk 00:01:21]} {[%emt 00:00:22]} Nxc3 {[%clk 00:02:06]} {[%emt 00:00:02]} 21.
Rxc3 {[%clk 00:01:21]} {[%emt 00:00:02]} Rxc3 {[%clk 00:02:07]} {[%emt
00:00:01]} 22. Qxc3 {[%clk 00:01:22]} {[%emt 00:00:01]} Rc8 {[%clk 00:02:07]}
{[%emt 00:00:01]} 23. Qd2 {[%clk 00:01:19]} {[%emt 00:00:05]} Bf8 {[%clk
00:01:54]} {[%emt 00:00:15]} 24. Rc1 {[%clk 00:00:58]} {[%emt 00:00:23]} Rxc1+
{[%clk 00:01:46]} {[%emt 00:00:10]} 25. Qxc1 {[%clk 00:00:59]} Qd6 {[%clk
00:01:28]} {[%emt 00:00:19]} 26. Nd2 {[%clk 00:00:49]} {[%emt 00:00:13]} Be6
{[%clk 00:01:28]} {[%emt 00:00:03]} 27. Bf1 {[%clk 00:00:46]} {[%emt 00:00:04]}
Qa3 {[%clk 00:00:59]} {[%emt 00:00:30]} 28. Qxa3 {[%clk 00:00:26]} {[%emt
00:00:24]} Bxa3 {[%clk 00:01:00]} {[%emt 00:00:01]} 29. Bb5 {[%clk 00:00:18]}
{[%emt 00:00:10]} Kf7 {[%clk 00:00:58]} {[%emt 00:00:04]} 30. Kf1 {[%clk
00:00:19]} {[%emt 00:00:01]} Ke7 {[%clk 00:00:59]} 31. Ke2 {[%clk 00:00:18]}
{[%emt 00:00:03]} Kd6 {[%clk 00:00:57]} {[%emt 00:00:02]} 32. Kd3 {[%clk
00:00:19]} {[%emt 00:00:02]} Bc5 {[%clk 00:00:51]} {[%emt 00:00:08]} 33. Bxc5+
{[%clk 00:00:10]} {[%emt 00:00:11]} Kxc5 {[%clk 00:00:51]} {[%emt 00:00:02]} 34.
Bc4 {[%clk 00:00:10]} {[%emt 00:00:02]} Bxc4+ {[%clk 00:00:43]} {[%emt
00:00:10]} 35. bxc4 {[%clk 00:00:11]} Kb4 {[%clk 00:00:35]} {[%emt 00:00:11]}
36. Nb3 {[%clk 00:00:11]} {[%emt 00:00:02]} Nxc4 {[%clk 00:00:31]} {[%emt
00:00:06]} 37. f4 {[%clk 00:00:09]} {[%emt 00:00:04]} b6 {[%clk 00:00:29]}
{[%emt 00:00:04]} 38. f5 {[%clk 00:00:07]} {[%emt 00:00:04]} gxf5 {[%clk
00:00:29]} {[%emt 00:00:01]} 39. exf5 {[%clk 00:00:08]} {[%emt 00:00:01]} Nd6
{[%clk 00:00:30]} 40. g4 {[%clk 00:00:09]} {[%emt 00:00:02]} h6 {[%clk
00:00:31]} {[%emt 00:00:01]} 41. Nd2 {[%clk 00:00:09]} {[%emt 00:00:02]} a5
{[%clk 00:00:31]} {[%emt 00:00:02]} 42. Kc2 {[%clk 00:00:09]} {[%emt 00:00:02]}
Kc5 {[%clk 00:00:31]} {[%emt 00:00:02]} 43. Kc3 {[%clk 00:00:09]} {[%emt
00:00:02]} b5 {[%clk 00:00:32]} 44. Nf3 {[%clk 00:00:10]} {[%emt 00:00:03]}
Ne4+ {[%clk 00:00:30]} {[%emt 00:00:04]} 45. Kd3 {[%clk 00:00:09]} {[%emt
00:00:03]} Nf2+ {[%clk 00:00:31]} {[%emt 00:00:01]} 46. Kc3 {[%clk 00:00:10]}
{[%emt 00:00:01]} Nxg4 {[%clk 00:00:32]} {[%emt 00:00:01]} 47. h3 {[%clk
00:00:11]} Ne3 {[%clk 00:00:32]} {[%emt 00:00:02]} 48. Nh4 {[%clk 00:00:11]}
{[%emt 00:00:02]} b4+ {[%clk 00:00:33]} 49. Kb3 {[%clk 00:00:12]} {[%emt
00:00:02]} Kb5 {[%clk 00:00:35]} {[%emt 00:00:01]} 50. a3 {[%clk 00:00:12]} a4+
{[%clk 00:00:36]} 51. Kb2 {[%emt 00:00:02]} b3 52. Ng6 {[%clk 00:00:11]} {[%emt
00:00:04]} Nxf5 {[%clk 00:00:36]} {[%emt 00:00:04]} 53. Ne7 {[%clk 00:00:12]}
Nxe7 {[%clk 00:03:02]} {[%emt 00:00:03]} 0-1

[Event "MČR v bleskovém šachu družstev 2019"]
[Site "Teplice, Czech Republic"]
[Date "2019.09.14"]
[Round "1.9"]
[White "Brejnik, Gustav"]
[Black "Bernasek, Jan"]
[Result "1-0"]
[TimeControl "3 mim. + 2 s"]
[BlackTitle "GM"]
[WhiteFideId "362662"]
[BlackFideId "311995"]
[WhiteElo "2137"]
[BlackElo "2526"]

1. d4 {[%clk 00:03:03]} Nf6 {[%clk 00:03:02]} {[%emt 00:00:02]} 2. c4 {[%clk
00:03:03]} {[%emt 00:00:02]} e6 {[%clk 00:03:04]} 3. g3 {[%clk 00:03:04]}
{[%emt 00:00:02]} d5 {[%clk 00:03:02]} {[%emt 00:00:03]} 4. Nf3 {[%clk
00:03:04]} {[%emt 00:00:01]} Be7 {[%clk 00:03:03]} {[%emt 00:00:01]} 5. Bg2
{[%clk 00:03:05]} O-O {[%clk 00:03:04]} {[%emt 00:00:02]} 6. O-O {[%clk
00:03:06]} {[%emt 00:00:02]} c6 {[%clk 00:03:05]} {[%emt 00:00:02]} 7. Qc2
{[%clk 00:03:05]} {[%emt 00:00:03]} Nbd7 {[%clk 00:03:05]} {[%emt 00:00:01]} 8.
Nbd2 {[%clk 00:03:06]} {[%emt 00:00:01]} b6 {[%clk 00:03:06]} {[%emt 00:00:02]}
9. e4 {[%clk 00:02:59]} {[%emt 00:00:09]} dxe4 {[%clk 00:02:56]} {[%emt
00:00:12]} 10. Nxe4 {[%clk 00:02:59]} {[%emt 00:00:02]} Bb7 {[%clk 00:02:53]}
{[%emt 00:00:05]} 11. Rd1 {[%clk 00:02:45]} {[%emt 00:00:16]} Nxe4 {[%clk
00:02:46]} {[%emt 00:00:10]} 12. Qxe4 {[%clk 00:02:46]} {[%emt 00:00:01]} Nf6
{[%clk 00:02:46]} {[%emt 00:00:01]} 13. Qe2 {[%clk 00:02:44]} {[%emt 00:00:03]}
Qc8 {[%clk 00:02:40]} {[%emt 00:00:09]} 14. Bf4 {[%clk 00:02:18]} {[%emt
00:00:28]} Rd8 {[%clk 00:02:40]} {[%emt 00:00:02]} 15. Rd3 {[%clk 00:02:10]}
{[%emt 00:00:10]} Ba6 {[%clk 00:02:20]} {[%emt 00:00:22]} 16. b3 {[%clk
00:02:08]} {[%emt 00:00:04]} b5 {[%clk 00:02:09]} {[%emt 00:00:13]} 17. Ne5
{[%clk 00:02:01]} {[%emt 00:00:09]} bxc4 {[%clk 00:02:09]} {[%emt 00:00:02]} 18.
bxc4 {[%clk 00:02:01]} {[%emt 00:00:02]} Bb7 {[%clk 00:01:59]} {[%emt
00:00:11]} 19. Rb1 {[%clk 00:01:45]} {[%emt 00:00:17]} a5 {[%clk 00:02:00]}
{[%emt 00:00:01]} 20. Qb2 {[%clk 00:01:23]} {[%emt 00:00:24]} Ra7 {[%clk
00:01:46]} {[%emt 00:00:16]} 21. Qb6 {[%clk 00:01:22]} {[%emt 00:00:02]} Qa8
{[%clk 00:01:30]} {[%emt 00:00:18]} 22. Nxc6 {[%clk 00:01:17]} {[%emt
00:00:07]} Bxc6 {[%clk 00:01:09]} {[%emt 00:00:23]} 23. Bxc6 {[%clk 00:01:18]}
{[%emt 00:00:01]} Qc8 {[%clk 00:01:10]} 24. Qxa7 {[%clk 00:01:15]} {[%emt
00:00:05]} Qxc6 {[%clk 00:01:08]} {[%emt 00:00:04]} 25. Qxe7 {[%clk 00:01:15]}
{[%emt 00:00:02]} Re8 {[%clk 00:01:06]} {[%emt 00:00:04]} 26. Qb7 {[%clk
00:01:15]} {[%emt 00:00:02]} Qxc4 {[%clk 00:01:06]} {[%emt 00:00:03]} 27. Qb5
{[%clk 00:01:12]} {[%emt 00:00:04]} Qc2 {[%clk 00:01:07]} {[%emt 00:00:02]} 28.
Be5 {[%clk 00:01:04]} {[%emt 00:00:09]} Rc8 {[%clk 00:00:58]} {[%emt 00:00:10]}
29. Qb8 {[%clk 00:00:49]} {[%emt 00:00:18]} Ne8 {[%clk 00:00:50]} {[%emt
00:00:10]} 30. Qb3 {[%clk 00:00:39]} {[%emt 00:00:11]} Qe2 {[%clk 00:00:50]}
{[%emt 00:00:03]} 31. Rc3 {[%clk 00:00:34]} {[%emt 00:00:07]} Rd8 {[%clk
00:00:46]} {[%emt 00:00:06]} 32. Qb6 {[%clk 00:00:28]} {[%emt 00:00:08]} Qxa2
{[%clk 00:00:28]} {[%emt 00:00:21]} 33. Qxd8 {[%clk 00:00:17]} {[%emt
00:00:13]} Qxb1+ {[%clk 00:00:29]} {[%emt 00:00:01]} 34. Kg2 {[%clk 00:00:18]}
Qe4+ {[%clk 00:00:30]} {[%emt 00:00:01]} 35. Kf1 {[%clk 00:00:16]} {[%emt
00:00:03]} Qb1+ {[%clk 00:00:30]} {[%emt 00:00:01]} 36. Ke2 {[%clk 00:00:16]}
{[%emt 00:00:01]} Qe4+ {[%emt 00:00:04]} 37. Kd2 {[%clk 00:00:15]} {[%emt
00:00:02]} h6 {[%clk 00:00:22]} {[%emt 00:00:11]} 38. Qxe8+ {[%clk 00:00:16]}
{[%emt 00:00:02]} Kh7 {[%clk 00:00:24]} 39. Qxf7 {[%clk 00:00:15]} {[%emt
00:00:02]} 1-0

[Event "MČR v bleskovém šachu družstev 2019"]
[Site "Teplice, Czech Republic"]
[Date "2019.09.14"]
[Round "1.10"]
[White "Cernousek, Lukas"]
[Black "Hula, Lukas"]
[Result "1-0"]
[TimeControl "3 mim. + 2 s"]
[WhiteTitle "IM"]
[WhiteFideId "311707"]
[BlackFideId "319830"]
[WhiteElo "2473"]
[BlackElo "2111"]

1. Nf3 {[%clk 00:03:03]} d5 {[%clk 00:03:03]} {[%emt 00:00:02]} 2. e3 {[%clk
00:03:05]} c6 {[%clk 00:03:03]} 3. c4 {[%clk 00:03:05]} {[%emt 00:00:02]} Bg4
{[%clk 00:02:59]} {[%emt 00:00:06]} 4. Nc3 {[%clk 00:02:59]} {[%emt 00:00:09]}
e6 {[%clk 00:02:59]} {[%emt 00:00:02]} 5. d4 {[%clk 00:02:49]} {[%emt
00:00:12]} Nf6 {[%clk 00:02:45]} {[%emt 00:00:15]} 6. Qb3 {[%clk 00:02:45]}
{[%emt 00:00:06]} Qb6 {[%clk 00:02:41]} {[%emt 00:00:07]} 7. Ne5 {[%clk
00:02:44]} {[%emt 00:00:03]} Bf5 {[%clk 00:02:31]} {[%emt 00:00:12]} 8. c5
{[%clk 00:02:32]} {[%emt 00:00:14]} Qxb3 {[%clk 00:02:22]} {[%emt 00:00:10]} 9.
axb3 {[%clk 00:02:33]} {[%emt 00:00:01]} Nbd7 {[%clk 00:02:22]} {[%emt
00:00:02]} 10. Nxd7 {[%clk 00:02:27]} {[%emt 00:00:08]} Nxd7 {[%clk 00:02:22]}
{[%emt 00:00:03]} 11. b4 {[%clk 00:02:29]} e5 {[%clk 00:01:49]} {[%emt
00:00:35]} 12. b5 {[%clk 00:02:27]} {[%emt 00:00:03]} Be7 {[%clk 00:01:41]}
{[%emt 00:00:10]} 13. bxc6 {[%clk 00:01:08]} {[%emt 00:01:22]} bxc6 {[%clk
00:01:41]} {[%emt 00:00:02]} 14. Ra6 {[%clk 00:01:09]} Nb8 {[%clk 00:01:20]}
{[%emt 00:00:24]} 15. Ra4 {[%clk 00:01:10]} {[%emt 00:00:01]} Bc2 {[%clk
00:01:06]} {[%emt 00:00:16]} 16. Ra3 {[%clk 00:00:56]} {[%emt 00:00:17]} O-O
{[%clk 00:01:03]} {[%emt 00:00:05]} 17. Kd2 {[%clk 00:00:45]} {[%emt 00:00:12]}
Bg6 {[%clk 00:00:55]} {[%emt 00:00:11]} 18. Bd3 {[%clk 00:00:43]} {[%emt
00:00:04]} exd4 {[%clk 00:00:47]} {[%emt 00:00:10]} 19. exd4 {[%clk 00:00:42]}
{[%emt 00:00:03]} Bf6 {[%clk 00:00:37]} {[%emt 00:00:12]} 20. Bxg6 {[%clk
00:00:37]} {[%emt 00:00:08]} fxg6 {[%emt 00:00:02]} 21. Kd3 a5 {[%clk
00:00:26]} {[%emt 00:00:13]} 22. b4 {[%clk 00:00:38]} {[%emt 00:00:01]} Bd8
{[%clk 00:00:19]} {[%emt 00:00:09]} 23. Be3 {[%clk 00:00:35]} {[%emt 00:00:05]}
Na6 {[%clk 00:00:13]} {[%emt 00:00:08]} 24. bxa5 {[%clk 00:00:30]} {[%emt
00:00:08]} Bxa5 {[%clk 00:00:14]} {[%emt 00:00:01]} 25. Rha1 {[%clk 00:00:16]}
{[%emt 00:00:16]} Bxc3 {[%clk 00:00:14]} {[%emt 00:00:01]} 26. Kxc3 {[%clk
00:00:17]} {[%emt 00:00:01]} Nc7 {[%clk 00:00:15]} 27. Rxa8 {[%clk 00:00:13]}
{[%emt 00:00:07]} Rxa8 {[%clk 00:00:17]} {[%emt 00:00:01]} 28. Rxa8+ {[%clk
00:00:13]} Nxa8 {[%clk 00:00:18]} 29. Bf4 {[%clk 00:00:14]} {[%emt 00:00:01]}
Kf7 {[%clk 00:00:19]} 30. Kb4 {[%clk 00:00:15]} {[%emt 00:00:01]} Ke6 {[%clk
00:00:20]} {[%emt 00:00:01]} 31. Ka5 {[%clk 00:00:16]} {[%emt 00:00:02]} g5
{[%clk 00:00:21]} {[%emt 00:00:01]} 32. Be5 {[%clk 00:00:17]} {[%emt 00:00:01]}
g6 {[%clk 00:00:22]} {[%emt 00:00:01]} 33. Ka6 {[%clk 00:00:17]} {[%emt
00:00:01]} Kd7 {[%clk 00:00:23]} 34. Kb7 {[%clk 00:00:18]} {[%emt 00:00:02]}
1-0